fUSD/lending_fUSD_20251227
["ID","MTS","AMOUNT","RATE_DAILY","PERIOD"]
[399880470,1766799067881,-1004.126,0.00038999,2]
[399880471,1766799067891,-16504.28127553,0.00039,39]
[399880472,1766799067905,-33495.71872447,0.00039,39]
[399880473,1766799067919,-50000.0,0.00039,49]
[399880474,1766799067929,-17922.52684216,0.00039,59]
[399880475,1766799067942,-32077.47315784,0.00039,59]
[399880476,1766799067952,-10000.0,0.00039,7]
[399880477,1766799067962,-180.62652826,0.00039,120]
[399880478,1766799067971,-196965.54675744,0.00039,3]
[399880479,1766799067988,-133047.523553,0.00039,3]
[399880480,1766799068002,-170377.86834004,0.00039,3]
[399880481,1766799068012,-800.0,0.00039,2]
[399880482,1766799068021,-8225.8438251,0.00039,2]
[399880483,1766799068036,-116061.80057419,0.00039,2]
[399880484,1766799068047,-621.61282643,0.00039,2]
[399880485,1766799068059,-83355.86221884,0.00039,2]
[399880486,1766799068071,-1884.72333032,0.00039,2]
[399880487,1766799068083,-45391.10593899,0.00039,2]
[399880488,1766799068095,-302.0,0.00039,2]
[399880489,1766799068107,-453.0,0.00039,2]
[399880490,1766799068118,-3204.69937564,0.00039,2]
[399880491,1766799068130,-357.449822,0.00039,2]
[399880492,1766799068142,-1125.22801669,0.00039,2]
[399880493,1766799068154,-11521.30174946,0.00039,2]
[399880494,1766799068165,-3692.54708041,0.00039,2]
[399880495,1766799068181,-363.71539186,0.00039,2]
[399880496,1766799068192,-2433.92932378,0.00039,2]
[399880497,1766799068204,-413.04461511,0.00039,2]
[399880498,1766799068216,-289.02487641,0.00039,2]
[399880499,1766799068227,-379006.04187801,0.00039,2]
[399880500,1766799068310,230.00194364,0.00030136,120]
[399880501,1766799068518,258.3087379,0.00030136,120]
[399880502,1766799068576,167.19589903,0.00030136,120]
[399880503,1766799068649,210.67078086,0.00030136,120]
[399880504,1766799068883,500.0,0.00030136,120]
[399880505,1766799068925,196.34443096,0.00030136,120]
[399880506,1766799069011,282.15235731,0.00030136,120]
[399880507,1766799069138,-228.1425854,0.0001203,2]
[399880508,1766799070342,439.3797,0.00030136,120]
[399880509,1766799070734,-339.76430645,0.0001203,2]
[399880510,1766799071348,166.57044118,0.00030136,120]
[399880512,1766799072168,-317.14084097,0.0001203,2]
[399880513,1766799074264,910.747544,0.00011969,2]
[399880514,1766799077103,-252.27016474,0.0001203,2]
[399880515,1766799079221,-194.40313991,0.0001203,2]
[399880516,1766799079626,500.0,0.00030136,120]
[399880517,1766799079851,500.0,0.00030136,120]
[399880518,1766799080082,329.76745823,0.00030136,120]
[399880519,1766799081311,172.5926654,0.00030136,120]
[399880520,1766799081347,-161.42674057,0.0001203,2]
[399880521,1766799084747,500.0,0.00030136,120]
[399880522,1766799084892,152.55735416,0.00030136,120]
[399880523,1766799084970,500.0,0.00030136,120]
[399880524,1766799085232,347.33681591,0.00030136,120]
[399880525,1766799085268,-156.63631247,0.0001203,2]
[399880526,1766799086601,213.80463455,0.00030136,120]
[399880527,1766799086653,763.814145,0.00011969,2]
[399880528,1766799086848,174.47353165,0.00030136,120]
[399880529,1766799087286,-346.11299405,0.0001203,2]
[399880531,1766799088532,500.0,0.00030136,120]
[399880532,1766799088802,500.0,0.00030136,120]
[399880533,1766799089060,532.17136577,0.00030136,120]
[399880534,1766799092032,153.31555048,0.00030136,120]
[399880535,1766799092668,552.011,0.00011789,2]
[399880536,1766799093289,-595.51685364,0.0001203,2]
[399880537,1766799093947,201.56861022,0.00030136,120]
[399880538,1766799095254,175.06730497,0.00030136,120]
[399880539,1766799095888,228.13993614,0.00030136,120]
[399880540,1766799095938,-151.059341,0.0001203,2]
[399880541,1766799097833,228.77253921,0.00030136,120]
[399880542,1766799098167,-211.78450564,0.0001203,2]
[399880543,1766799099653,169.57402918,0.00030136,120]
[399880544,1766799101279,177.82289673,0.00030136,120]
[399880545,1766799101448,230.33323189,0.00030136,120]
[399880546,1766799104737,500.0,0.00030136,120]
[399880548,1766799105001,500.0,0.00030136,120]
[399880549,1766799105243,500.0,0.00030136,120]
[399880550,1766799105484,201.4748005,0.00030136,120]
[399880551,1766799108082,157.93448465,0.00030136,120]
[399880554,1766799110012,320.56979521,0.00030136,120]
[399880555,1766799111651,152.97736228,0.00030136,120]
[399880556,1766799113267,262.03337487,0.00030136,120]
[399880558,1766799114724,392.88357337,0.00030136,120]
[399880559,1766799116102,178.7071647,0.00030136,120]
[399880561,1766799118193,380.2306699,0.00030136,120]
[399880562,1766799119804,278.21637172,0.00030136,120]
[399880563,1766799119874,193.28518882,0.00030136,120]
[399880564,1766799121649,204.54435911,0.00030136,120]
[399880566,1766799121913,562.56510623,0.00030136,120]
[399880567,1766799122232,500.0,0.00030136,120]
[399880568,1766799122482,500.0,0.00030136,120]
[399880569,1766799122758,500.0,0.00030136,120]
[399880570,1766799123013,254.62067617,0.00030136,120]
[399880571,1766799123418,406.57005087,0.00030136,120]
[399880572,1766799126654,792.95,0.00030136,120]
[399880573,1766799126827,194.38651976,0.00030136,120]
[399880574,1766799126894,792.95,0.00030136,120]
[399880575,1766799127079,500.0,0.00030136,120]
[399880576,1766799127151,792.95,0.00030136,120]
[399880577,1766799127331,640.69260965,0.00030136,120]
[399880578,1766799127374,792.95,0.00030136,120]
[399880579,1766799127604,792.95,0.00030136,120]
[399880580,1766799127845,792.95,0.00030136,120]
[399880581,1766799128072,792.95,0.00030136,120]
[399880582,1766799128334,228.05872634,0.00011931,2]
[399880583,1766799128392,792.95,0.00030136,120]
[399880584,1766799128599,792.95,0.00030136,120]
[399880586,1766799128845,792.95,0.00030136,120]
[399880587,1766799129109,792.95,0.00030136,120]
[399880588,1766799129374,792.95,0.00030136,120]
[399880589,1766799129605,792.95,0.00030136,120]
[399880590,1766799129856,792.95,0.00030136,120]
[399880591,1766799130126,792.95,0.00030136,120]
[399880592,1766799130357,792.95,0.00030136,120]
[399880593,1766799130592,792.95,0.00030136,120]
[399880594,1766799130809,792.95,0.00030136,120]
[399880595,1766799131072,792.95,0.00030136,120]
[399880596,1766799131304,792.95,0.00030136,120]
[399880597,1766799131531,792.95,0.00030136,120]
[399880598,1766799131769,792.95,0.00030136,120]
[399880599,1766799131989,170.2681379,0.00011931,2]
[399880600,1766799132058,792.95,0.00030136,120]
[399880601,1766799132258,793.17711519,0.00030136,120]
[399880602,1766799132351,177.98628835,0.00030136,120]
[399880603,1766799134149,277.1777552,0.00030136,120]
[399880604,1766799134189,286.91665666,0.00030136,120]
[399880606,1766799136770,500.0,0.00030136,120]
[399880607,1766799137013,500.0,0.00030136,120]
[399880608,1766799137227,190.91365337,0.00030136,120]
[399880609,1766799138139,204.52080237,0.00030136,120]
[399880611,1766799139095,500.0,0.00030136,120]
[399880612,1766799139325,500.0,0.00030136,120]
[399880613,1766799139432,293.56135104,0.00030136,120]
[399880614,1766799139556,500.0,0.00030136,120]
[399880615,1766799139788,500.0,0.00030136,120]
[399880616,1766799140044,157.39488607,0.00030136,120]
[399880617,1766799141488,286.59655978,0.00030136,120]
[399880618,1766799142928,416.36255222,0.00030136,120]
[399880619,1766799145246,414.83354794,0.00030136,120]
[399880620,1766799145378,198.69541854,0.00030136,120]
[399880621,1766799145673,169.81558386,0.00030136,120]
[399880622,1766799147082,157.79529643,0.00011931,2]
[399880623,1766799147350,235.86136421,0.00030136,120]
[399880624,1766799148848,150.82647129,0.00030136,120]
[399880625,1766799148885,500.0,0.00030136,120]
[399880626,1766799149105,500.0,0.00030136,120]
[399880627,1766799149376,500.0,0.00030136,120]
[399880628,1766799149606,500.0,0.00030136,120]
[399880629,1766799149857,500.0,0.00030136,120]
[399880630,1766799150086,500.0,0.00030136,120]
[399880631,1766799150339,517.98961844,0.00030136,120]
[399880632,1766799150815,246.61453171,0.00030136,120]
[399880633,1766799150969,559.21023071,0.00030136,120]
[399880634,1766799152203,321.50042802,0.00011931,2]
[399880635,1766799155727,218.51013907,0.00030136,120]
[399880636,1766799156397,500.0,0.00030136,120]
[399880637,1766799156644,500.0,0.00030136,120]
[399880638,1766799156887,500.0,0.00030136,120]
[399880639,1766799157067,172.51692138,0.00030136,120]
[399880640,1766799157121,540.08685774,0.00030136,120]
[399880642,1766799160037,151.059341,0.00011969,2]
[399880643,1766799160875,303.56112127,0.00030136,120]
[399880644,1766799161888,486.02546522,0.00030136,120]
[399880645,1766799162998,500.0,0.00030136,120]
[399880646,1766799163222,155.2428971,0.00030136,120]
[399880647,1766799163553,500.0,0.00030136,120]
[399880649,1766799163800,347.94135055,0.00030136,120]
[399880650,1766799164293,484.48152139,0.00030136,120]
[399880651,1766799165454,298.33359956,0.00030136,120]
[399880652,1766799165488,210.29856708,0.00030136,120]
[399880656,1766799169145,364.44563028,0.00030136,120]
[399880657,1766799169291,308.34492414,0.00030136,120]
[399880658,1766799169755,500.0,0.00030136,120]
[399880659,1766799170075,500.0,0.00030136,120]
[399880660,1766799170229,433.86044121,0.00030136,120]
[399880661,1766799170536,447.2805464,0.00030136,120]
[399880662,1766799171115,356.90374991,0.00030136,120]
[399880663,1766799172076,153.74145699,0.00030136,120]
[399880664,1766799172430,172.83885631,0.00030136,120]
[399880667,1766799174468,210.04776672,0.00030136,120]
[399880668,1766799175105,415.54372989,0.00030136,120]
[399880671,1766799176910,596.02051434,0.00030136,120]
[399880672,1766799177668,282.47487199,0.00030136,120]
[399880673,1766799180372,197.54877762,0.00030136,120]
[399880674,1766799183143,500.0,0.00030136,120]
[399880675,1766799183371,394.06002277,0.00030136,120]
[399880676,1766799185634,273.73295694,0.00030136,120]
[399880677,1766799185877,290.92872784,0.00030136,120]
[399880689,1766799189309,178.76457793,0.00030136,120]
[399880692,1766799189934,500.0,0.00030136,120]
[399880694,1766799190174,500.0,0.00030136,120]
[399880697,1766799190514,500.0,0.00030136,120]
[399880698,1766799190573,198.63174305,0.00030136,120]
[399880699,1766799190636,500.0,0.00030136,120]
[399880701,1766799190872,500.0,0.00030136,120]
[399880703,1766799191124,500.0,0.00030136,120]
[399880704,1766799191373,500.0,0.00030136,120]
[399880709,1766799191607,550.45440258,0.00030136,120]
[399880715,1766799194655,154.29419129,0.00030136,120]
[399880716,1766799195932,229.99288317,0.00030136,120]
[399880717,1766799198129,165.4666892,0.00030136,120]
[399880718,1766799199333,500.0,0.00030136,120]
[399880720,1766799199534,171.44579051,0.00030136,120]
[399880721,1766799199569,500.0,0.00030136,120]
[399880722,1766799199836,500.0,0.00030136,120]
[399880723,1766799200018,500.0,0.00030136,120]
[399880724,1766799200250,500.0,0.00030136,120]
[399880725,1766799200491,500.0,0.00030136,120]
[399880726,1766799200735,500.0,0.00030136,120]
[399880727,1766799200985,500.0,0.00030136,120]
[399880728,1766799201223,500.0,0.00030136,120]
[399880729,1766799201466,427.11505096,0.00030136,120]
[399880730,1766799202271,184.28786715,0.00030136,120]
[399880731,1766799203051,229.32136896,0.00030136,120]
[399880733,1766799204601,500.0,0.00030136,120]
[399880734,1766799204761,234.42638174,0.00030136,120]
[399880735,1766799204827,423.65345164,0.00030136,120]
[399880736,1766799204941,380.98895136,0.00030136,120]
[399880737,1766799208647,209.63719489,0.00030136,120]
[399880738,1766799210630,169.22226577,0.00030136,120]
[399880739,1766799214187,500.0,0.00030136,120]
[399880740,1766799214460,175.81323388,0.00030136,120]
[399880741,1766799215078,234.98061642,0.00030136,120]
[399880742,1766799216373,188.82162401,0.00030136,120]
[399880744,1766799218882,199.34139195,0.00030136,120]
[399880745,1766799219747,167.48071921,0.00030136,120]
[399880747,1766799220173,279.78704402,0.00030136,120]
[399880748,1766799222922,181.02607425,0.00030136,120]
[399880749,1766799222956,397.91450956,0.00030136,120]
[399880750,1766799223838,500.0,0.00030136,120]
[399880751,1766799224075,472.93476069,0.00030136,120]
[399880752,1766799224883,233.38145964,0.00030136,120]
[399880753,1766799227063,500.0,0.00030136,120]
[399880754,1766799227290,220.04137702,0.00030136,120]
[399880755,1766799228116,170.67795958,0.00030136,120]
[399880756,1766799232065,184.62080079,0.00030136,120]
[399880757,1766799233220,7204.90036234,0.0001193,2]
[399880759,1766799244489,560.63250278,0.00030136,120]
[399880760,1766799249988,215.40990897,0.00030136,120]
[399880761,1766799255077,1834.35063229,0.0001193,2]
[399880762,1766799262640,1897.03,0.00030136,120]
[399880763,1766799262867,1897.03,0.00030136,120]
[399880764,1766799263106,1897.03,0.00030136,120]
[399880765,1766799263672,1897.03,0.00030136,120]
[399880766,1766799263898,1897.03,0.00030136,120]
[399880767,1766799264124,1897.03,0.00030136,120]
[399880768,1766799264500,1897.03,0.00030136,120]
[399880769,1766799264751,1897.03,0.00030136,120]
[399880770,1766799264990,1897.03,0.00030136,120]
[399880771,1766799265220,1897.03,0.00030136,120]
[399880772,1766799265448,1897.03,0.00030136,120]
[399880773,1766799265690,1897.03,0.00030136,120]
[399880774,1766799265918,1897.03,0.00030136,120]
[399880775,1766799266142,1897.03,0.00030136,120]
[399880776,1766799266385,1897.03,0.00030136,120]
[399880777,1766799266613,1897.03,0.00030136,120]
[399880778,1766799266863,1897.03,0.00030136,120]
[399880779,1766799267148,1897.03,0.00030136,120]
[399880780,1766799267379,1897.03,0.00030136,120]
[399880781,1766799267631,1897.03,0.00030136,120]
[399880782,1766799267862,1897.03,0.00030136,120]
[399880783,1766799268044,159.44600339,0.00030136,120]
[399880784,1766799268135,1897.03,0.00030136,120]
[399880785,1766799268755,1897.03,0.00030136,120]
[399880786,1766799268961,1897.26225112,0.00030136,120]
[399880787,1766799292545,214.33361868,0.0001193,2]
[399880788,1766799295975,500.0,0.00030136,120]
[399880789,1766799296318,500.0,0.00030136,120]
[399880790,1766799296482,500.0,0.00030136,120]
[399880791,1766799297097,500.0,0.00030136,120]
[399880792,1766799297139,500.0,0.00030136,120]
[399880793,1766799297320,500.0,0.00030136,120]
[399880794,1766799297532,500.0,0.00030136,120]
[399880795,1766799297784,500.0,0.00030136,120]
[399880796,1766799298383,500.0,0.00030136,120]
[399880797,1766799298665,500.0,0.00030136,120]
[399880798,1766799298898,500.0,0.00030136,120]
[399880799,1766799299145,500.0,0.00030136,120]
[399880800,1766799299371,500.0,0.00030136,120]
[399880801,1766799299622,500.0,0.00030136,120]
[399880802,1766799299875,500.0,0.00030136,120]
[399880803,1766799300113,500.0,0.00030136,120]
[399880804,1766799300348,500.0,0.00030136,120]
[399880805,1766799300923,500.0,0.00030136,120]
[399880806,1766799301183,500.0,0.00030136,120]
[399880807,1766799301455,500.0,0.00030136,120]
[399880808,1766799301694,500.0,0.00030136,120]
[399880809,1766799301954,500.0,0.00030136,120]
[399880810,1766799302184,571.74804328,0.00030136,120]
[399880811,1766799304001,293.44702347,0.00030136,120]
[399880812,1766799324995,500.0,0.00030136,120]
[399880813,1766799325224,194.97342902,0.00030136,120]
[399880814,1766799328726,500.0,0.00030136,120]
[399880815,1766799328951,484.75732486,0.00030136,120]
[399880816,1766799337589,323.69388497,0.00030136,120]
[399880817,1766799349450,205.11910221,0.00030136,120]
[399880818,1766799374089,500.0,0.00030136,120]
[399880819,1766799374314,477.88484108,0.00030136,120]
[399880820,1766799376361,500.0,0.00030136,120]
[399880821,1766799376610,500.0,0.00030136,120]
[399880822,1766799376835,324.43905964,0.00030136,120]
[399880823,1766799393782,161.56,7.738e-05,2]
[399880824,1766799394045,161.56,8.146e-05,2]
[399880825,1766799394245,161.56,8.553e-05,2]
[399880826,1766799394461,161.56,8.96e-05,2]
[399880827,1766799394668,161.56,9.367e-05,2]
[399880828,1766799394878,161.56,9.775e-05,2]
[399880829,1766799395078,161.56,0.00010182,2]
[399880830,1766799395284,161.56,0.00010589,2]
[399880831,1766799395524,161.56,0.00010997,2]
[399880832,1766799395723,161.56,0.00011404,2]
[399880833,1766799395939,161.56,0.00011811,2]
[399880834,1766799398815,500.0,0.00030136,120]
[399880835,1766799399057,500.0,0.00030136,120]
[399880836,1766799399330,500.0,0.00030136,120]
[399880837,1766799399559,450.57850228,0.00030136,120]
[399880838,1766799402202,170.2681379,0.0001193,2]
[399880839,1766799404614,500.0,0.00030136,120]
[399880840,1766799404843,500.0,0.00030136,120]
[399880841,1766799405081,325.83772074,0.00030136,120]
[399880842,1766799416053,500.0,0.00030136,120]
[399880843,1766799416276,500.0,0.00030136,120]
[399880844,1766799416472,500.0,0.00030136,120]
[399880845,1766799416552,332.26039767,0.00030136,120]
[399880846,1766799416704,500.0,0.00030136,120]
[399880847,1766799416928,500.0,0.00030136,120]
[399880848,1766799417176,500.0,0.00030136,120]
[399880849,1766799417398,500.0,0.00030136,120]
[399880850,1766799417655,310.64948905,0.00030136,120]
[399880851,1766799422909,500.0,0.00030136,120]
[399880852,1766799423101,500.0,0.00030136,120]
[399880853,1766799423334,500.0,0.00030136,120]
[399880854,1766799423586,500.0,0.00030136,120]
[399880855,1766799423833,500.0,0.00030136,120]
[399880856,1766799424087,500.0,0.00030136,120]
[399880857,1766799424384,302.18389543,0.00030136,120]
[399880858,1766799427290,500.0,0.00030136,120]
[399880859,1766799427518,500.0,0.00030136,120]
[399880860,1766799427773,453.15746625,0.00030136,120]
[399880861,1766799432901,214.33361866,0.0001193,2]
[399880862,1766799445810,500.0,0.00030136,120]
[399880863,1766799446217,500.0,0.00030136,120]
[399880864,1766799446449,500.0,0.00030136,120]
[399880865,1766799446666,500.0,0.00030136,120]
[399880866,1766799446924,500.0,0.00030136,120]
[399880867,1766799447168,220.87313254,0.00030136,120]
[399880868,1766799457569,500.0,0.00011929,2]
[399880870,1766799509713,500.0,0.00030136,120]
[399880871,1766799510027,500.0,0.00030136,120]
[399880872,1766799510281,500.0,0.00030136,120]
[399880873,1766799510522,500.0,0.00030136,120]
[399880874,1766799510774,500.0,0.00030136,120]
[399880875,1766799511014,500.0,0.00030136,120]
[399880876,1766799511276,500.0,0.00030136,120]
[399880877,1766799511541,500.0,0.00030136,120]
[399880878,1766799511772,500.0,0.00030136,120]
[399880879,1766799512017,500.0,0.00030136,120]
[399880880,1766799512243,500.0,0.00030136,120]
[399880881,1766799512740,500.0,0.00030136,120]
[399880882,1766799512777,447.64101114,0.00030136,120]
[399880883,1766799531448,203.94632005,0.00030136,120]
[399880884,1766799541140,155.99841768,0.00030136,120]
[399880885,1766799563264,214.33361866,0.00011931,2]
[399880886,1766799600538,600.0,0.00030136,120]
[399880887,1766799619506,6484.41032607,0.00011931,2]
[399880889,1766799655970,4886.5707,0.0001193,2]
[399880890,1766799662250,2500.0,0.0001193,2]
[399880891,1766799662703,170.2681379,0.00011931,2]
[399880892,1766799673588,279.90190971,0.000301,120]
[399880893,1766799692786,441.608,0.00011789,2]
[399880895,1766799812034,1636.8788,0.0001193,2]
[399880896,1766799930199,500.0,0.00030136,120]
[399880897,1766799930438,500.0,0.00030136,120]
[399880898,1766799930693,500.0,0.00030136,120]
[399880899,1766799930917,500.0,0.00030136,120]
[399880900,1766799931147,500.0,0.00030136,120]
[399880904,1766799954351,500.0,0.00030136,120]
[399880905,1766799954584,500.0,0.00030136,120]
[399880906,1766799954834,353.66163185,0.00030136,120]
[399880907,1766799961360,289.3709,0.0001193,2]
[399880908,1766799962378,183.15805294,0.00030136,120]
[399880909,1766800007637,500.0,0.00030136,120]
[399880910,1766800007907,500.0,0.00030136,120]
[399880911,1766800008201,500.0,0.00030136,120]
[399880912,1766800008427,500.0,0.00030136,120]
[399880913,1766800008668,500.0,0.00030136,120]
[399880914,1766800008905,500.0,0.00030136,120]
[399880915,1766800009153,500.0,0.00030136,120]
[399880916,1766800009422,500.0,0.00030136,120]
[399880917,1766800033229,190.21034731,0.00011927,2]
[399880929,1766800056370,1000000.0,0.0001193,2]
[399880931,1766800206234,777164.24619314,0.0001193,2]
[399880932,1766800206277,222835.75380686,0.0001193,2]
[399880933,1766800219332,500.0,0.00030136,120]
[399880934,1766800219583,500.0,0.00030136,120]
[399880935,1766800219803,500.0,0.00030136,120]
[399880936,1766800220040,500.0,0.00030136,120]
[399880937,1766800220299,500.0,0.00030136,120]
[399880940,1766800231675,-1200.0,0.00012017,2]
[399880941,1766800231686,-300.0,0.00012017,2]
[399880942,1766800231697,-1200.0,0.00012017,2]
[399880943,1766800231707,-240.91019309,0.00012017,2]
[399880944,1766800231720,-59.08980691,0.00012017,2]
[399880945,1766800231731,-195.36019309,0.00012017,2]
[399880946,1766800231743,-52.63980691,0.00012017,2]
[399880947,1766800231754,-250.0,0.00012018,2]
[399880948,1766800231764,-5117.81234112,0.00012018,2]
[399880949,1766800231777,-718.15695237,0.00012018,2]
[399880950,1766800231787,-190.21034731,0.00012018,2]
[399880951,1766800231798,-227.20300539,0.00012028,2]
[399880959,1766800238027,-72.79699461,0.00012028,2]
[399880960,1766800238037,-150.0,0.00012028,2]
[399880961,1766800238047,-300.0,0.00012028,2]
[399880963,1766800238057,-161.56,0.00012218,2]
[399880964,1766800238067,-161.56,0.00012626,2]
[399880967,1766800238080,-161.56,0.00013033,2]
[399880969,1766800238090,-255.0,0.0001311,2]
[399880971,1766800238100,-342.40231425,0.00013157,2]
[399880973,1766800238110,-645.0,0.00013192,2]
[399880975,1766800238120,-420.0,0.00013192,2]
[399880977,1766800238129,-420.0,0.00013192,2]
[399880979,1766800238139,-250.0,0.00013219,2]
[399880981,1766800238150,-1680.0,0.00013219,2]
[399880983,1766800238162,-253.03331941,0.0001323,2]
[399880985,1766800238172,-300.0,0.0001323,2]
[399880987,1766800238182,-161.56,0.0001344,2]
[399880989,1766800238192,-500.0,0.00013698,2]
[399880991,1766800238203,-500.0,0.00013698,2]
[399880993,1766800238212,-501.47797406,0.00013698,2]
[399880995,1766800238222,-500.0,0.00013698,2]
[399880997,1766800238231,-500.0,0.00013698,2]
[399880999,1766800238241,-345.8069114,0.00013698,2]
[399881001,1766800238250,-14868.53,0.00013699,2]
[399881003,1766800238259,-9999.99,0.00013699,2]
[399881005,1766800238269,-9999.99,0.00013699,2]
[399881007,1766800238279,-150.99,0.00013699,2]
[399881009,1766800238290,-5309.43,0.00013699,2]
[399881011,1766800238300,-295.92,0.00013699,2]
[399881013,1766800238311,-299.99,0.00013699,2]
[399881015,1766800238320,-453.09,0.00013699,2]
[399881017,1766800238330,-161.56,0.00013848,2]
[399881019,1766800238339,-161.56,0.00014255,2]
[399881021,1766800238348,-433.0,0.00014289,2]
[399881023,1766800238358,-500.0,0.00014373,2]
[399881025,1766800238368,-276.7577343,0.00014373,2]
[399881027,1766800238379,-342.17374481,0.00014373,2]
[399881029,1766800238389,-500.0,0.00014373,2]
[399881031,1766800238398,-500.0,0.00014373,2]
[399881033,1766800238408,-587.0,0.00014481,2]
[399881035,1766800238418,-167.0,0.00014481,2]
[399881037,1766800238428,-166.66,0.00014539,2]
[399881039,1766800238439,-500.0,0.00014539,2]
[399881041,1766800238449,-1405.0,0.00014541,2]
[399881043,1766800238461,-211.568001,0.00014622,2]
[399881045,1766800238471,-161.56,0.00014662,2]
[399881047,1766800238480,-500.0,0.00014813,2]
[399881049,1766800238490,-166.66,0.00014845,2]
[399881051,1766800238503,-1000.0,0.00014921,2]
[399881053,1766800238513,-503.37055829,0.00014921,2]
[399881055,1766800238523,-504.60203633,0.00014921,2]
[399881057,1766800238533,-150.96,0.00015,2]
[399881059,1766800238543,-5835.96929341,0.00015005,2]
[399881061,1766800238552,-161.56,0.00015069,2]
[399881063,1766800238562,-500.0,0.00015087,2]
[399881064,1766800238572,-150.0,0.00015107,2]
[399881066,1766800238582,-166.66,0.00015151,2]
[399881068,1766800238592,-322.6107,0.00015241,2]
[399881071,1766800238602,-554.99798309,0.00015241,2]
[399881073,1766800238612,-500.0,0.00015241,2]
[399881075,1766800238622,-250.0,0.00015241,2]
[399881077,1766800238632,-500.0,0.00015241,2]
[399881078,1766800238643,-264.51547206,0.00015241,2]
[399881080,1766800238653,-500.0,0.00015241,2]
[399881082,1766800238663,-430.59090159,0.00015241,2]
[399881084,1766800238673,-151.0,0.0001534,2]
[399881086,1766800238683,-151.0,0.0001534,2]
[399881089,1766800238693,-600.88665179,0.00015361,2]
[399881091,1766800238704,-166.66,0.00015457,2]
[399881093,1766800238713,-1506.04845715,0.00015468,2]
[399881095,1766800238724,-161.56,0.00015477,2]
[399881097,1766800238734,-1000.0,0.00015547,2]
[399881098,1766800238744,-588.0,0.00015576,2]
[399881101,1766800238755,-167.54,0.00015645,2]
[399881103,1766800238766,-166.66,0.00015763,2]
[399881105,1766800238776,-250.44201601,0.00015878,2]
[399881107,1766800238786,-500.55754384,0.00015973,2]
[399881109,1766800238796,-501.39528355,0.00015973,2]
[399881110,1766800238806,-501.33026527,0.00015973,2]
[399881111,1766800238816,-501.05298635,0.00015973,2]
[399881112,1766800238826,-500.0,0.00015973,2]
[399881113,1766800238837,-500.0,0.00015973,2]
[399881114,1766800238847,-535.60543088,0.00015973,2]
[399881115,1766800238857,-500.86583175,0.00015973,2]
[399881116,1766800238867,-501.0402701,0.00015973,2]
[399881117,1766800238877,-500.87337966,0.00015973,2]
[399881118,1766800238888,-500.74677632,0.00015973,2]
[399881119,1766800238899,-500.912102,0.00015973,2]
[399881120,1766800238909,-500.904378,0.00015973,2]
[399881121,1766800238919,-501.36338219,0.00015973,2]
[399881122,1766800238929,-502.73668002,0.00015973,2]